bitfinex-derivatives/quotes_SOLF0:USTF0_20250113
["timestamp","ask_amount","ask_price","bid_price","bid_amount"]
[1736769139848,92.33069266,176.28,176.27,2.8401]
[1736769140052,92.33069266,176.29,176.22,13.94698862]
[1736769140251,92.33069266,176.29,176.28,2.8399]
[1736769140757,101.43835693,176.29,176.28,2.8399]
[1736769142057,9.10766427,176.29,176.28,2.8399]
[1736769146062,23.05465289,176.29,176.19,13.94698862]
[1736769146756,110.86674256,176.28,176.23,2.8406]
[1736769146958,113.70664256,176.28,176.19,13.94698862]
[1736769147152,9.10766427,176.27,176.24,2.8405]
[1736769147351,9.10766427,176.27,176.17,13.94698862]
[1736769147759,101.43835693,176.27,176.24,2.8405]
[1736769148154,9.10766427,176.26,176.24,2.8405]
[1736769148551,9.10766427,176.26,176.25,2.8404]
[1736769149557,101.43835693,176.26,176.17,13.94698862]
[1736769150066,9.10766427,176.25,176.17,13.94698862]
[1736769150459,23.05465289,176.26,176.13,13.94698862]
[1736769151061,2.8408,176.23,176.13,13.94698862]
[1736769151264,9.10766427,176.24,176.13,13.94698862]
[1736769151460,9.10766427,176.24,176.12,1.6721]
[1736769151660,9.10766427,176.24,176.14,13.94698862]
[1736769152761,16.34766427,176.24,176.14,13.94698862]
[1736769153065,2.8409,176.22,176.14,13.94698862]
[1736769153367,16.34766427,176.24,176.14,13.94698862]
[1736769153666,2.8408,176.23,176.19,2.8413]
[1736769153963,16.34766427,176.24,176.14,13.94698862]
[1736769155066,19.18826427,176.24,176.2,2.8411]
[1736769155362,16.34766427,176.24,176.14,13.94698862]
[1736769155667,16.34766427,176.24,176.21,2.8409]
[1736769156362,9.10766427,176.24,176.17,13.94698862]
[1736769156565,9.10766427,176.24,176.23,2.8407]
[1736769156760,92.33069266,176.26,176.17,13.94698862]
[1736769156957,92.33069266,176.26,176.24,2.8404]
[1736769157156,92.33069266,176.26,176.2,13.94698862]
[1736769157564,92.33069266,176.27,176.25,2.8403]
[1736769157968,9.12502799,176.26,176.25,2.8403]
[1736769159466,92.33069266,176.27,176.26,2.8402]
[1736769159669,92.33069266,176.27,176.21,1.5926]
[1736769161169,92.33069266,176.27,176.25,2.8402]
[1736769161371,92.33069266,176.27,176.21,1.5926]
[1736769161571,92.33069266,176.27,176.23,13.94698862]
[1736769161771,92.33069266,176.27,176.26,2.8402]
[1736769162167,92.33069266,176.27,176.2,13.94698862]
[1736769162371,92.33069266,176.27,176.22,2.8409]
[1736769162561,9.12634225,176.26,176.17,13.94698862]
[1736769162868,2.8406,176.24,176.19,2.8412]
[1736769163073,2.8406,176.24,176.17,13.94698862]
[1736769163272,9.12634225,176.26,176.17,13.94698862]
[1736769163571,9.12634225,176.26,176.21,2.8409]
[1736769163572,95.17109266,176.25,176.21,2.8409]
[1736769163773,9.12634225,176.24,176.21,2.8409]
[1736769164472,2.8408,176.23,176.19,2.8413]
[1736769164675,9.12634225,176.24,176.17,13.94698862]
[1736769165368,9.12634225,176.24,176.22,2.8407]
[1736769166373,9.12634225,176.24,176.17,13.94698862]
[1736769166577,9.12634225,176.24,176.21,2.8409]
[1736769167082,9.12634225,176.24,176.22,2.8408]
[1736769167269,9.12634225,176.24,176.17,13.94698862]
[1736769167875,18.56050746,176.25,176.24,2.8406]
[1736769168276,92.33069266,176.26,176.24,2.8406]
[1736769168580,9.12856062,176.25,176.24,2.8406]
[1736769170173,92.33069266,176.27,176.24,2.8406]
[1736769170378,92.33069266,176.27,176.25,2.8403]
[1736769170878,9.12905124,176.26,176.25,2.8403]
[1736769172580,101.4597439,176.26,176.25,2.8403]
[1736769173283,101.4597439,176.26,176.2,13.94698862]
[1736769173576,9.12905124,176.25,176.2,13.94698862]
[1736769173879,9.12905124,176.25,176.24,2.8405]
[1736769174472,9.12905124,176.26,176.24,2.8405]
[1736769174679,9.12905124,176.26,176.25,2.8404]
[1736769175582,9.12905124,176.26,176.2,13.94698862]
[1736769175782,9.12905124,176.26,176.24,2.8405]
[1736769176373,9.12905124,176.27,176.25,2.8404]
[1736769176782,101.4597439,176.27,176.25,2.8404]
[1736769177179,9.12905124,176.26,176.25,2.8404]
[1736769180682,92.33069266,176.27,176.25,2.8404]
[1736769180878,110.89120012,176.28,176.25,2.8404]
[1736769181284,110.89120012,176.28,176.23,8.91716931]
[1736769181485,110.89120012,176.28,176.25,8.91716931]
[1736769181685,9.12650163,176.27,176.25,8.91716931]
[1736769181882,9.12650163,176.27,176.18,1.6696]
[1736769182086,8.91716931,176.26,176.2,8.91716931]
[1736769182477,18.04367094,176.26,176.21,2.8409]
[1736769182886,2.8405,176.25,176.21,2.8409]
[1736769183283,113.73170012,176.25,176.2,8.91716931]
[1736769183486,9.12650163,176.24,176.22,2.8408]
[1736769184986,9.12650163,176.24,176.19,2.8412]
[1736769185183,9.12650163,176.24,176.19,8.91716931]
[1736769185388,9.12650163,176.24,176.22,2.8408]
[1736769186084,9.12650163,176.24,176.23,11.75786931]
[1736769188092,9.12650163,176.24,176.14,1.6278]
[1736769188293,9.12650163,176.24,176.21,8.91716931]
[1736769188788,9.12650163,176.24,176.21,11.75806931]
[1736769189589,9.12650163,176.24,176.22,2.8408]
[1736769190494,9.12650163,176.24,176.21,8.91716931]
[1736769190694,9.12650163,176.24,176.23,2.8407]
[1736769191496,9.12650163,176.24,176.23,11.75786931]
[1736769193196,92.33069266,176.27,176.26,2.8402]
[1736769193488,171.3542711,176.29,176.25,8.91716931]
[1736769193690,104.53863683,176.29,176.28,11.75706931]
[1736769193890,18.56050746,176.3,176.28,8.91716931]
[1736769194097,7.13320746,176.3,176.28,8.91716931]
[1736769194394,7.13320746,176.3,176.29,2.8397]
[1736769194598,8.91716931,176.37,176.29,8.91716931]
[1736769194899,8.91716931,176.33,176.19,7.89108237]
[1736769195101,8.91716931,176.31,176.24,8.91716931]
[1736769195293,8.91716931,176.29,176.2,13.93332215]
[1736769195498,3.1825,176.3,176.2,13.93332215]
[1736769196101,3.1825,176.3,176.2,16.77432215]
[1736769196600,3.1825,176.3,176.2,2.841]
[1736769196902,2.8404,176.25,176.2,2.841]
[1736769197301,2.8404,176.25,176.19,2.8413]
[1736769197502,2.8406,176.24,176.19,2.8413]
[1736769198397,2.8404,176.25,176.2,2.8412]
[1736769198703,13.93332215,176.28,176.17,13.93332215]
[1736769199598,13.93332215,176.28,176.13,93.0985817]
[1736769201201,2.8407,176.24,176.13,93.0985817]
[1736769201395,7.22,176.25,176.16,13.93332215]
[1736769202203,2.8408,176.23,176.18,2.8415]
[1736769202501,1.6086,176.24,176.13,79.16525955]
[1736769202704,17.21602215,176.22,176.13,79.16525955]
[1736769203898,17.21602215,176.22,176.11,8.17373042]
[1736769204099,13.93332215,176.19,176.09,13.93332215]
[1736769204304,13.93332215,176.16,176.07,31.56432949]
[1736769204597,17.21602215,176.22,176.07,31.56432949]
[1736769204598,13.93332215,176.13,176.07,31.56432949]
[1736769204803,21.15332215,176.13,176.07,31.56432949]
[1736769205000,2.8431,176.08,176.07,31.56432949]
[1736769205504,2.843,176.09,176.03,2.8439]
[1736769205703,21.15332215,176.13,175.98,7.89108237]
[1736769206201,21.15332215,176.13,176.03,2.8439]
[1736769206202,2.8431,176.09,176.03,2.8439]
[1736769206401,2.8431,176.09,175.98,7.89108237]
[1736769206709,21.15332215,176.13,176.03,2.8439]
[1736769206895,2.8432,176.08,175.95,13.93332215]
[1736769208205,13.93332215,176.1,175.89,229.06680042]
[1736769208397,13.93332215,176.04,175.93,13.93332215]
[1736769208603,21.15332215,176.04,175.93,13.93332215]
[1736769209198,7.22,176.04,175.96,13.93332215]
[1736769209403,13.93332215,176.1,175.96,13.93332215]
[1736769209706,2.8437,176.05,175.96,13.93332215]
[1736769209903,2.8437,176.05,175.89,221.17571805]
[1736769210104,2.8437,176.05,175.96,13.93332215]
[1736769210497,2.844,176.03,175.96,13.93332215]
[1736769210701,2.844,176.03,175.93,13.93332215]
[1736769211301,2.8438,176.04,175.97,2.8448]
[1736769211506,5.0979,176.06,175.97,2.8448]
[1736769212205,2.8438,176.04,175.98,2.8447]
[1736769212405,5.0979,176.06,175.89,221.17571805]
[1736769212608,5.0979,176.06,175.95,13.93332215]
[1736769213904,5.0979,176.06,176.01,2.8442]
[1736769215307,7.9414,176.06,175.95,13.93332215]
[1736769215508,7.9414,176.06,176.02,2.8441]
[1736769216308,5.0979,176.06,175.95,13.93332215]
[1736769216505,3.378,176.06,176.04,2.8438]
[1736769217111,3.378,176.06,176.03,2.8439]
[1736769218416,2.8436,176.05,176.01,2.8441]
[1736769218712,3.378,176.06,175.95,13.93332215]
[1736769219414,5.0558,176.06,175.95,13.93332215]
[1736769219609,2.8442,176.02,175.97,2.8448]
[1736769219913,5.0558,176.06,175.95,13.93332215]
[1736769220714,5.0558,176.06,175.99,2.8445]
[1736769221309,2.8438,176.04,175.95,13.93332215]
[1736769221612,5.0558,176.06,175.95,13.93332215]
[1736769221814,2.844,176.03,175.95,13.93332215]
[1736769222007,13.93332215,176.04,175.95,13.93332215]
[1736769222210,13.93332215,176.04,175.92,13.93332215]
[1736769222411,2.8445,176.0,175.92,13.93332215]
[1736769222615,2.8445,176.0,175.96,2.845]
[1736769223011,13.93332215,176.04,175.89,221.17571805]
[1736769223012,13.93332215,176.04,175.89,123.69571805]
[1736769223217,13.93332215,175.98,175.87,25.70349396]
[1736769223521,7.22,176.0,175.87,25.70349396]
[1736769223819,2.8448,175.98,175.93,2.8455]
[1736769224018,13.93332215,175.98,175.87,25.70349396]
[1736769224219,2.8454,175.95,175.9,2.8459]
[1736769224425,3.2884,175.97,175.9,2.8459]
[1736769224922,2.8454,175.95,175.9,2.8459]
[1736769226214,3.2884,175.97,175.87,25.70349396]
[1736769227722,3.2884,175.97,175.9,2.846]
[1736769227723,2.8454,175.94,175.9,2.846]
[1736769227919,3.2884,175.97,175.9,2.846]
[1736769228426,3.2884,175.97,175.87,25.70349396]
[1736769229222,2.8454,175.94,175.9,2.8459]
[1736769229425,3.2884,175.97,175.87,25.70349396]
[1736769230225,2.8453,175.95,175.9,2.846]
[1736769230521,2.8453,175.95,175.87,25.70349396]
[1736769231023,2.8454,175.94,175.87,25.70349396]
[1736769231322,2.8454,175.94,175.9,2.8459]
[1736769231827,3.2884,175.97,175.89,2.8461]
[1736769232123,3.2884,175.97,175.87,25.70349396]
[1736769232314,2.8454,175.94,175.9,2.8459]
[1736769232717,8.8165,175.99,175.9,13.93332215]
[1736769232917,2.8448,175.98,175.92,2.8456]
[1736769233123,8.8165,175.99,175.9,13.93332215]
[1736769233326,8.8165,175.99,175.87,11.77017181]
[1736769233722,2.8451,175.96,175.91,2.8457]
[1736769234024,2.8451,175.96,175.87,11.77017181]
[1736769234224,2.8454,175.95,175.9,2.846]
[1736769234421,8.8165,175.99,175.9,2.846]
[1736769234925,2.8453,175.95,175.91,2.8459]
[1736769235824,2.8449,175.98,175.93,2.8455]
[1736769236424,4.4611,175.99,175.96,2.8451]
[1736769237229,7.2,176.02,175.92,13.93332215]
[1736769237431,7.2,176.02,175.92,45.19308149]
[1736769237923,3.3931,176.03,175.95,13.93332215]
[1736769238729,6.2371,176.03,175.95,13.93332215]
[1736769239121,2.8438,176.04,176.0,2.8444]
[1736769239322,7.2,176.05,175.95,107.7126002]
[1736769239629,21.13332215,176.05,175.95,107.7126002]
[1736769239924,21.13332215,176.05,175.96,7.81493983]
[1736769240523,13.93332215,176.02,175.96,7.81493983]
[1736769240823,13.93332215,176.02,175.93,31.25975934]
[1736769240824,3.4303,176.01,175.93,31.25975934]
[1736769241024,5.1426,176.01,175.93,31.25975934]
[1736769241326,13.93332215,175.99,175.93,31.25975934]
[1736769241526,13.93332215,175.99,175.91,62.51951871]
[1736769241527,2.8453,175.95,175.92,34.10545934]
[1736769242225,10.045,175.97,175.94,2.8454]
[1736769242424,10.045,175.97,175.91,31.25975934]
[1736769242625,7.2,175.97,175.91,31.25975934]
[1736769243526,2.8452,175.96,175.91,34.10565934]
[1736769243728,7.2,175.97,175.91,34.10565934]
[1736769244429,7.2,175.97,175.91,2.8459]
[1736769245131,2.8454,175.94,175.89,31.25975934]
[1736769245431,13.93332215,175.95,175.88,31.25975934]
[1736769245631,2.8458,175.92,175.88,31.25975934]
[1736769245932,2.8458,175.92,175.88,34.10595934]
[1736769246329,3.2328,175.94,175.88,2.8462]
[1736769246630,2.8459,175.91,175.88,2.8462]
[1736769246825,2.8459,175.91,175.87,2.8465]
[1736769248133,2.8458,175.92,175.88,2.8464]
[1736769248827,2.8461,175.9,175.86,2.8466]
[1736769249432,2.8464,175.88,175.84,2.847]
[1736769249627,2.8464,175.88,175.83,13.93332215]
[1736769250531,2.8464,175.88,175.83,16.78032215]
[1736769250730,10.0462,175.89,175.83,13.93332215]
[1736769251232,2.8464,175.88,175.84,2.847]
[1736769251431,7.2,175.89,175.8,13.93332215]
[1736769251834,7.2,175.89,175.83,2.8471]
[1736769252630,2.8468,175.86,175.82,2.8473]
[1736769254337,2.8466,175.87,175.82,2.8473]
[1736769255132,7.2,175.88,175.84,2.8469]
[1736769256136,10.0465,175.88,175.84,2.8469]
[1736769256443,7.2,175.88,175.83,2.8471]
[1736769257037,2.8466,175.87,175.8,13.93332215]
[1736769257340,7.2,175.88,175.81,2.8474]
[1736769257841,2.8468,175.86,175.8,13.93332215]
[1736769258738,6.0105,175.87,175.83,2.847]
[1736769259043,7.2,175.88,175.85,2.8468]
[1736769259439,7.2,175.9,175.83,13.93332215]
[1736769259739,7.2,175.91,175.83,13.93332215]
[1736769260437,7.2,175.91,175.85,2.8468]
[1736769260835,7.2,175.91,175.83,13.93332215]
[1736769261441,2.8458,175.92,175.83,13.93332215]
[1736769261639,10.3996,175.93,175.76,87.52632103]
[1736769261842,10.3996,175.93,175.81,13.93332215]
[1736769262735,2.8463,175.89,175.84,2.8469]
[1736769263235,2.8463,175.89,175.81,13.93332215]
[1736769263236,2.8461,175.9,175.86,2.8467]
[1736769263443,10.3996,175.93,175.86,2.8467]
[1736769263640,10.3996,175.93,175.81,13.93332215]
[1736769263844,2.8467,175.87,175.82,2.8473]
[1736769264545,13.93332215,175.91,175.82,2.8473]
[1736769264738,13.93332215,175.91,175.81,2.8474]
[1736769264944,13.93332215,175.88,175.78,13.93332215]
[1736769265143,2.8468,175.85,175.78,13.93332215]
[1736769265345,1.6737,175.87,175.79,2.8477]
[1736769265848,2.8471,175.84,175.78,13.93332215]
[1736769266047,2.8471,175.84,175.8,2.8476]
[1736769266246,2.8472,175.83,175.8,2.8476]
[1736769266446,7.2,175.85,175.78,13.93332215]
[1736769267147,7.2,175.85,175.77,79.32805801]
[1736769268247,2.8471,175.84,175.8,2.8476]
[1736769269045,7.2,175.85,175.77,79.32805801]
[1736769269245,10.0469,175.85,175.82,2.8473]
[1736769269747,2.8465,175.87,175.78,13.93332215]
[1736769269948,7.2,175.87,175.78,13.93332215]
[1736769270244,13.93332215,175.93,175.81,13.93332215]
[1736769270443,21.13332215,175.93,175.81,13.93332215]
[1736769270648,7.2,175.92,175.81,13.93332215]
[1736769270848,2.846,175.91,175.86,2.8466]
[1736769271048,7.2,175.92,175.86,2.8466]
[1736769271347,2.8461,175.9,175.86,2.8466]
[1736769271948,7.2,175.92,175.87,2.8465]
[1736769272146,2.8459,175.91,175.87,2.8465]
[1736769272446,7.2,175.92,175.87,2.8464]
[1736769272644,10.0459,175.92,175.87,2.8464]
[1736769272844,7.2,175.92,175.81,13.93332215]
[1736769273146,7.2,175.92,175.87,2.8465]
[1736769273449,2.846,175.91,175.87,2.8465]
[1736769274151,7.2,175.92,175.81,13.93332215]
[1736769275253,13.93332215,175.9,175.84,2.847]
[1736769275451,8.7963,175.92,175.84,2.847]
[1736769276152,2.8465,175.88,175.84,2.847]
[1736769276550,7.2,175.92,175.78,13.93332215]
[1736769276753,10.0458,175.92,175.82,13.93332215]
[1736769277152,10.0458,175.92,175.88,2.8462]
[1736769277655,2.8458,175.92,175.88,2.8462]
[1736769279351,10.0257,175.93,175.89,2.8461]
[1736769279658,92.76143484,175.98,175.88,13.93332215]
[1736769279956,7.18,175.97,175.88,13.93332215]
[1736769280255,2.8454,175.95,175.91,2.8457]
[1736769281656,2.8454,175.94,175.91,2.8457]
[1736769284753,2.8456,175.93,175.89,2.8461]
[1736769284952,21.11332215,175.97,175.84,13.93332215]
[1736769285158,13.93332215,175.94,175.84,13.93332215]
[1736769285460,2.8462,175.89,175.84,13.93332215]
[1736769285757,3.4288,175.93,175.84,13.93332215]
[1736769285953,3.4288,175.93,175.77,93.26138016]
[1736769285954,13.93332215,175.91,175.77,79.32805801]
[1736769286159,13.93332215,175.91,175.8,13.93332215]
[1736769286752,2.8464,175.88,175.83,2.8472]
[1736769287858,2.8468,175.86,175.81,16.78082215]
[1736769288351,7.18,175.89,175.81,16.78082215]
[1736769288659,2.847,175.84,175.8,2.8476]
[1736769288861,7.18,175.89,175.8,2.8476]
[1736769289362,2.8469,175.85,175.8,2.8476]
[1736769289555,7.18,175.89,175.78,13.93332215]
[1736769289761,2.8468,175.86,175.78,13.93332215]
[1736769290251,7.18,175.89,175.77,79.32805801]
[1736769290252,7.18,175.89,175.8,2.8476]
[1736769291058,2.8471,175.84,175.8,2.8476]
[1736769292759,2.8468,175.86,175.81,2.8474]
[1736769293262,2.847,175.84,175.79,2.8477]
[1736769296064,2.8472,175.83,175.78,16.78122215]
[1736769297667,21.11332215,175.89,175.78,13.93332215]
[1736769297869,2.8475,175.82,175.77,2.8481]
[1736769298262,4.8294,175.86,175.76,13.93332215]
[1736769298463,2.8472,175.83,175.78,2.8479]
[1736769298864,2.8474,175.82,175.76,16.78152215]
[1736769299562,2.8472,175.83,175.76,13.93332215]
[1736769300673,4.8294,175.86,175.78,2.8479]
[1736769300875,2.8473,175.82,175.78,2.8479]
[1736769301773,2.8472,175.83,175.76,13.93332215]
[1736769301968,3.2117,175.86,175.79,13.93332215]
[1736769302175,7.18,175.86,175.79,13.93332215]
[1736769302371,2.8466,175.87,175.79,13.93332215]
[1736769302574,2.8466,175.87,175.82,2.8472]
[1736769303274,2.8468,175.86,175.81,2.8474]
[1736769303478,8.95866328,175.87,175.81,8.95866328]
[1736769304076,2.847,175.84,175.81,8.95866328]
[1736769304784,2.847,175.84,175.73,79.35186726]
[1736769304785,2.8473,175.82,175.77,8.95866328]
[1736769305273,2.8473,175.82,175.77,11.80666328]
[1736769305478,2.8473,175.82,175.73,79.35186726]
[1736769305479,2.8473,175.82,175.75,14.00334038]
[1736769305878,2.8473,175.82,175.78,2.8479]
[1736769306682,1.6828,175.85,175.75,14.00334038]
[1736769306875,2.8475,175.81,175.77,2.8481]
[1736769308580,1.6828,175.85,175.76,2.8482]
[1736769308783,14.00334038,175.83,175.76,2.8482]
[1736769309082,14.00334038,175.83,175.73,79.35186726]
[1736769309083,1.6828,175.85,175.74,2.8486]
[1736769309377,14.00334038,175.77,175.62,5.7011]
[1736769309676,16.85184038,175.75,175.7,2.8491]
[1736769309982,3.2287,175.76,175.68,14.00334038]
[1736769310681,6.077,175.76,175.68,14.00334038]
[1736769310878,6.077,175.76,175.62,5.7011]
[1736769311181,3.2287,175.76,175.65,14.00334038]
[1736769311387,3.2287,175.76,175.68,14.00334038]
[1736769312587,4.792,175.76,175.68,14.00334038]
[1736769312781,2.8485,175.75,175.7,2.8491]
[1736769313082,4.792,175.76,175.68,14.00334038]
[1736769314884,4.792,175.76,175.7,2.8491]
[1736769315582,7.6404,175.76,175.68,14.00334038]
[1736769315983,4.792,175.76,175.68,14.00334038]
[1736769316383,3.2287,175.76,175.68,14.00334038]
[1736769316787,3.2287,175.76,175.71,2.849]
[1736769317187,6.077,175.76,175.71,2.849]
[1736769318385,6.077,175.76,175.71,16.85234038]
[1736769318886,3.2287,175.76,175.71,16.85234038]
[1736769319189,3.2287,175.76,175.73,2.8487]
[1736769319391,7.16,175.78,175.74,14.00334038]
[1736769319591,7.16,175.78,175.74,16.85184038]
[1736769320992,3.2738,175.83,175.77,14.00334038]
[1736769321189,1.6683,175.85,175.8,14.00334038]
[1736769321389,4.5153,175.85,175.8,14.00334038]
[1736769321589,4.5153,175.85,175.8,16.85094038]
[1736769322287,7.16,175.86,175.8,14.00334038]
[1736769322493,3.3923,175.89,175.83,14.00334038]
[1736769322889,6.2385,175.89,175.85,2.8468]
[1736769323087,3.3923,175.89,175.8,14.00334038]
[1736769323490,3.3923,175.89,175.78,2.8478]
[1736769323695,21.16334038,175.88,175.78,2.8478]
[1736769324296,14.00334038,175.85,175.75,2.8483]
[1736769324494,1.7253,175.84,175.75,2.8483]
[1736769324802,2.8476,175.8,175.75,2.8483]
[1736769324995,10.0076,175.8,175.75,2.8483]
[1736769325588,10.0076,175.8,175.74,14.00334038]
[1736769325589,2.8478,175.79,175.74,16.85194038]
[1736769326293,2.8478,175.79,175.74,14.00334038]
[1736769326494,2.8478,175.79,175.75,2.8484]
[1736769326888,2.8478,175.79,175.74,14.00334038]
[1736769327189,2.8478,175.79,175.74,2.8486]
[1736769327385,2.848,175.78,175.71,14.00334038]
[1736769327588,3.2492,175.79,175.72,2.8489]
[1736769327995,2.8482,175.77,175.72,2.8489]
[1736769328390,3.2492,175.79,175.71,14.00334038]
[1736769328596,2.8481,175.77,175.73,2.8488]
[1736769328893,2.8481,175.77,175.71,14.00334038]
[1736769329101,2.8483,175.76,175.72,2.8489]
[1736769329298,3.2492,175.79,175.68,14.00334038]
[1736769329299,17.25254038,175.79,175.68,14.00334038]
[1736769329688,2.8483,175.76,175.71,2.8491]
[1736769330193,2.8481,175.78,175.71,14.00334038]
[1736769331498,2.8481,175.78,175.73,2.8488]
[1736769332090,2.8482,175.77,175.72,2.8489]
[1736769333195,2.8482,175.77,175.73,2.8487]
[1736769334101,2.8482,175.77,175.72,2.8489]
[1736769334306,7.16,175.8,175.72,2.8489]
[1736769334507,2.8483,175.76,175.72,2.8489]
[1736769335507,2.8483,175.76,175.71,16.85234038]
[1736769335802,2.8486,175.74,175.71,14.00334038]
[1736769337907,2.8485,175.75,175.71,14.00334038]
[1736769338100,16.2639397,175.8,175.72,2.8488]
[1736769338410,2.848,175.78,175.71,14.00334038]
[1736769339001,7.16,175.8,175.71,14.00334038]
[1736769340102,2.8484,175.76,175.71,14.00334038]
[1736769340308,2.8484,175.76,175.71,16.85234038]
[1736769341100,2.8484,175.76,175.71,14.00334038]
[1736769341308,2.8484,175.76,175.72,2.8489]
[1736769343515,2.8485,175.75,175.71,2.8491]
[1736769344313,16.26688616,175.8,175.69,14.00334038]
[1736769344910,2.8484,175.76,175.69,14.00334038]
[1736769345112,16.26688616,175.8,175.69,14.00334038]
[1736769346116,2.8484,175.76,175.71,2.849]
[1736769347314,2.8484,175.76,175.72,8.96797423]
[1736769348608,2.8484,175.76,175.71,2.849]
[1736769348808,2.8484,175.76,175.72,8.96797423]
[1736769349008,8.96797423,175.77,175.72,8.96797423]
[1736769349204,2.8485,175.75,175.72,8.96797423]
[1736769350114,8.96797423,175.77,175.63,79.39832777]
[1736769350315,8.96797423,175.77,175.71,8.96797423]
[1736769350516,3.2582,175.76,175.71,8.96797423]
[1736769351613,2.8487,175.74,175.71,8.96797423]
[1736769351813,3.2582,175.76,175.71,8.96797423]
[1736769352013,8.96797423,175.73,175.63,79.39832777]
[1736769352222,8.96797423,175.73,175.67,8.96797423]
[1736769352223,2.8491,175.71,175.67,8.96797423]
[1736769352907,2.8491,175.71,175.67,2.8496]
[1736769353118,2.8491,175.71,175.67,11.81757423]
[1736769353511,2.8491,175.71,175.67,2.8496]
[1736769353711,2.8491,175.71,175.67,11.81757423]
[1736769354020,7.16,175.72,175.69,8.96797423]
[1736769354213,7.16,175.72,175.71,8.96797423]
[1736769355113,7.16,175.72,175.69,11.81737423]
[1736769355321,7.16,175.72,175.69,8.96797423]
[1736769355516,7.16,175.72,175.7,2.8492]
[1736769356613,7.16,175.72,175.69,2.8494]
[1736769357622,7.16,175.72,175.7,2.8492]
[1736769358321,7.16,175.72,175.69,2.8494]
[1736769361121,7.16,175.72,175.67,8.96797423]
[1736769361624,7.16,175.72,175.63,79.39832777]
[1736769361824,7.16,175.72,175.67,8.96797423]
[1736769362029,7.16,175.72,175.69,2.8493]
[1736769364027,8.96797423,175.71,175.68,2.8495]
[1736769364219,8.96797423,175.71,175.65,8.96797423]
[1736769365127,11.81707423,175.71,175.67,2.8497]
[1736769365728,8.96797423,175.69,175.67,2.8497]
[1736769366529,10.009,175.72,175.68,2.8496]
[1736769366730,8.96797423,175.71,175.68,2.8496]
[1736769367525,8.96797423,175.71,175.66,8.96797423]
[1736769367728,8.8297,175.75,175.68,8.96797423]
[1736769367929,8.96797423,175.74,175.68,8.96797423]
[1736769368332,11.81667423,175.74,175.67,8.96797423]
[1736769368525,8.8297,175.75,175.67,8.96797423]
[1736769368718,8.96797423,175.73,175.7,2.8491]
[1736769368924,8.96797423,175.73,175.67,8.96797423]
[1736769369125,8.96797423,175.73,175.6,5.7017]
[1736769369429,11.81677423,175.73,175.67,8.96797423]
[1736769369830,8.96797423,175.73,175.68,2.8495]
[1736769370130,8.96797423,175.71,175.65,8.96797423]
[1736769370530,8.8297,175.75,175.65,8.96797423]
[1736769370725,8.96797423,175.71,175.65,8.96797423]
[1736769370931,8.96797423,175.73,175.69,2.8493]
[1736769371120,8.96797423,175.73,175.67,8.96797423]
[1736769371431,8.96797423,175.71,175.58,79.41838484]
[1736769371631,8.96797423,175.71,175.67,2.8497]
[1736769372732,11.81707423,175.71,175.67,2.8497]
[1736769374330,8.96797423,175.69,175.58,79.41838484]
[1736769374524,8.96797423,175.69,175.64,8.96797423]
[1736769375028,2.8489,175.73,175.66,8.96797423]
[1736769375231,8.96797423,175.72,175.66,8.96797423]
[1736769375932,8.96797423,175.72,175.58,79.41838484]
[1736769376132,8.96797423,175.7,175.58,79.41838484]
[1736769376332,8.96797423,175.7,175.66,2.8499]
[1736769376630,7.14,175.74,175.66,2.8499]
[1736769376631,8.96797423,175.73,175.66,8.96797423]
[1736769377033,11.81677423,175.73,175.66,8.96797423]
[1736769377431,7.14,175.74,175.68,8.96797423]
[1736769377632,16.10797423,175.74,175.68,8.96797423]
[1736769377923,8.96797423,175.74,175.68,8.96797423]
[1736769378436,8.96797423,175.74,175.7,2.8492]
[1736769378931,8.96797423,175.74,175.68,8.96797423]
[1736769379832,8.96797423,175.74,175.71,2.8491]
[1736769380530,3.2582,175.76,175.73,2.8487]
[1736769380733,10.55567423,175.79,175.72,8.96797423]
[1736769381130,96.00793484,175.81,175.72,8.96797423]
[1736769381332,104.97590907,175.81,175.74,8.96797423]
[1736769381733,104.97590907,175.81,175.78,2.848]